[Event "Titled Tuesday Blitz February 28 Early 2023"]
[White "Madaminov, Mukhiddin"]
[Black "Sielecki, Christof"]
[WhiteFideId "14210703"]
[BlackFideId "4620437"]
[WhiteElo "2511"]
[BlackElo "2443"]
[Result "1-0"]
[Round "02"]
[TimeControl "180+2"]
[Date "2023.02.28"]
[WhiteClock "0:00:17"]
[BlackClock "0:00:18"]

1. d4 {[%clk 0:03:00]}  d5 {[%clk 0:02:58]} 2. Nc3 {[%clk 0:03:01]}  Nf6 {[%clk 0:02:57]} 3. Bf4 {[%clk 0:03:02]}  c5 {[%clk 0:02:56]} 4. e4 {[%clk 0:03:02]}  Nxe4 {[%clk 0:02:53]} 5. Nxe4 {[%clk 0:03:02]}  dxe4 {[%clk 0:02:54]} 6. dxc5 {[%clk 0:03:03]}  Qa5+ {[%clk 0:02:54]} 7. c3 {[%clk 0:03:04]}  Qxc5 {[%clk 0:02:54]} 8. Qa4+ {[%clk 0:03:04]}  Nc6 {[%clk 0:02:53]} 9. Qxe4 {[%clk 0:03:04]}  g6 {[%clk 0:02:53]} 10. Nf3 {[%clk 0:03:05]}  Bg7 {[%clk 0:02:53]} 11. Qe3 {[%clk 0:03:05]}  Qxe3+ {[%clk 0:02:49]} 12. Bxe3 {[%clk 0:03:06]}  Bd7 {[%clk 0:02:48]} 13. O-O-O {[%clk 0:03:05]}  h6 {[%clk 0:02:40]} 14. Bc4 {[%clk 0:03:02]}  e6 {[%clk 0:02:40]} 15. Rd2 {[%clk 0:02:53]}  O-O-O {[%clk 0:02:06]} 16. Rhd1 {[%clk 0:02:50]}  Rhe8 {[%clk 0:01:59]} 17. h4 {[%clk 0:02:44]}  f5 {[%clk 0:01:48]} 18. g3 {[%clk 0:02:44]}  Kc7 {[%clk 0:01:13]} 19. Bc5 {[%clk 0:02:04]}  Bc8 {[%clk 0:01:07]} 20. Bd6+ {[%clk 0:02:03]}  Kb6 {[%clk 0:01:08]} 21. Kc2 {[%clk 0:02:01]}  Bf8 {[%clk 0:01:05]} 22. Bxf8 {[%clk 0:01:58]}  Rxf8 {[%clk 0:01:06]} 23. Rxd8 {[%clk 0:01:35]}  Rxd8 {[%clk 0:01:05]} 24. Rxd8 {[%clk 0:01:35]}  Nxd8 {[%clk 0:01:06]} 25. Ne5 {[%clk 0:01:35]}  g5 {[%clk 0:01:07]} 26. hxg5 {[%clk 0:01:21]}  hxg5 {[%clk 0:01:07]} 27. Kd3 {[%clk 0:01:22]}  Kc5 {[%clk 0:01:07]} 28. b4+ {[%clk 0:01:19]}  Kd6 {[%clk 0:01:07]} 29. Kd4 {[%clk 0:01:20]}  g4 {[%clk 0:00:55]} 30. Bb5 {[%clk 0:01:10]}  b6 {[%clk 0:00:53]} 31. c4 {[%clk 0:01:09]}  Bb7 {[%clk 0:00:47]} 32. c5+ {[%clk 0:01:06]}  bxc5+ {[%clk 0:00:47]} 33. bxc5+ {[%clk 0:01:06]}  Kc7 {[%clk 0:00:48]} 34. a3 {[%clk 0:00:59]}  Bd5 {[%clk 0:00:47]} 35. Ke3 {[%clk 0:00:58]}  Nb7 {[%clk 0:00:38]} 36. Kd4 {[%clk 0:00:57]}  Nd8 {[%clk 0:00:39]} 37. Bd3 {[%clk 0:00:51]}  Bb7 {[%clk 0:00:34]} 38. Bc4 {[%clk 0:00:50]}  Bc6 {[%clk 0:00:33]} 39. Ke3 {[%clk 0:00:35]}  Bd7 {[%clk 0:00:33]} 40. Kf4 {[%clk 0:00:31]}  Bc8 {[%clk 0:00:27]} 41. Ke3 {[%clk 0:00:26]}  Nb7 {[%clk 0:00:26]} 42. Kd4 {[%clk 0:00:24]}  Nd8 {[%clk 0:00:27]} 43. Bb3 {[%clk 0:00:22]}  Bb7 {[%clk 0:00:26]} 44. Ba4 {[%clk 0:00:22]}  Bc8 {[%clk 0:00:25]} 45. Nd3 {[%clk 0:00:23]}  Nf7 {[%clk 0:00:22]} 46. Bb3 {[%clk 0:00:22]}  Bd7 {[%clk 0:00:20]} 47. Nb4 {[%clk 0:00:22]}  a5 {[%clk 0:00:20]} 48. Nd3 {[%clk 0:00:21]}  Bc8 {[%clk 0:00:19]} 49. Ne5 {[%clk 0:00:21]}  Ng5 {[%clk 0:00:20]} 50. Bc2 {[%clk 0:00:19]}  Bb7 {[%clk 0:00:20]} 51. Ke3 {[%clk 0:00:18]}  Be4 {[%clk 0:00:20]} 52. Bb3 {[%clk 0:00:17]}  Bb7 {[%clk 0:00:18]} 53. Kf4 {[%clk 0:00:17]}  Bc8 {[%clk 0:00:18]} 54. Kxg5 {[%clk 0:00:17]} 1-0


[Site "https://www.chess.com"]

[Event "Titled Tuesday Blitz February 28 Early 2023"]
[White "Acor, Corey"]
[Black "Saravana, Krishnan P."]
[WhiteFideId "2024861"]
[BlackFideId "5018382"]
[WhiteElo "2341"]
[BlackElo "2189"]
[Result "1-0"]
[Round "02"]
[TimeControl "180+2"]
[Date "2023.02.28"]
[WhiteClock "0:00:14"]
[BlackClock "0:00:01"]

1. e4 {[%clk 0:03:00]}  c6 {[%clk 0:02:55]} 2. d3 {[%clk 0:02:59]}  d5 {[%clk 0:02:55]} 3. Nd2 {[%clk 0:03:00]}  g6 {[%clk 0:02:54]} 4. g3 {[%clk 0:02:59]}  Bg7 {[%clk 0:02:54]} 5. Bg2 {[%clk 0:02:59]}  e5 {[%clk 0:02:54]} 6. Ngf3 {[%clk 0:02:58]}  Ne7 {[%clk 0:02:50]} 7. O-O {[%clk 0:02:58]}  O-O {[%clk 0:02:50]} 8. b3 {[%clk 0:02:55]}  c5 {[%clk 0:02:34]} 9. exd5 {[%clk 0:02:52]}  Nxd5 {[%clk 0:02:34]} 10. Bb2 {[%clk 0:02:52]}  Nc6 {[%clk 0:02:22]} 11. Re1 {[%clk 0:02:52]}  Re8 {[%clk 0:02:13]} 12. Nc4 {[%clk 0:02:49]}  f6 {[%clk 0:02:13]} 13. d4 {[%clk 0:02:25]}  cxd4 {[%clk 0:02:09]} 14. Nxd4 {[%clk 0:02:26]}  Nxd4 {[%clk 0:01:56]} 15. Bxd4 {[%clk 0:02:26]}  Be6 {[%clk 0:01:35]} 16. Bb2 {[%clk 0:02:26]}  Qd7 {[%clk 0:01:31]} 17. Qe2 {[%clk 0:02:12]}  Rad8 {[%clk 0:01:29]} 18. Rad1 {[%clk 0:02:11]}  Qf7 {[%clk 0:01:28]} 19. Rd2 {[%clk 0:01:47]}  Bh6 {[%clk 0:01:23]} 20. Rd3 {[%clk 0:01:45]}  Bf5 {[%clk 0:01:05]} 21. Rdd1 {[%clk 0:01:38]}  Be6 {[%clk 0:01:03]} 22. Nxe5 {[%clk 0:01:07]}  fxe5 {[%clk 0:01:00]} 23. Qxe5 {[%clk 0:01:08]}  Kf8 {[%clk 0:00:18]} 24. Bxd5 {[%clk 0:00:53]}  Bxd5 {[%clk 0:00:15]} 25. Qh8+ {[%clk 0:00:53]}  Qg8 {[%clk 0:00:14]} 26. Qf6+ {[%clk 0:00:50]}  Qf7 {[%clk 0:00:13]} 27. Rxe8+ {[%clk 0:00:30]}  Kxe8 {[%clk 0:00:11]} 28. c4 {[%clk 0:00:30]}  Bg7 {[%clk 0:00:03]} 29. Re1+ {[%clk 0:00:20]}  Kf8 {[%clk 0:00:01]} 30. Qxd8+ {[%clk 0:00:14]} 1-0


[Site "https://www.chess.com"]

[Event "Titled Tuesday Blitz February 28 Early 2023"]
[White "Aldokhin, Ivan"]
[Black "Koelle, Tobias"]
[WhiteFideId "24115720"]
[BlackFideId "16207378"]
[WhiteElo "2322"]
[BlackElo "2497"]
[Result "0-1"]
[Round "02"]
[TimeControl "180+2"]
[Date "2023.02.28"]
[WhiteClock "0:00:06"]
[BlackClock "0:01:48"]

1. e4 {[%clk 0:02:59]}  c5 {[%clk 0:02:53]} 2. Nf3 {[%clk 0:03:00]}  g6 {[%clk 0:02:54]} 3. d4 {[%clk 0:03:00]}  cxd4 {[%clk 0:02:55]} 4. Nxd4 {[%clk 0:03:01]}  Bg7 {[%clk 0:02:55]} 5. Nc3 {[%clk 0:03:02]}  Nc6 {[%clk 0:02:54]} 6. Be3 {[%clk 0:03:02]}  Nf6 {[%clk 0:02:54]} 7. Bc4 {[%clk 0:03:02]}  O-O {[%clk 0:02:53]} 8. Bb3 {[%clk 0:03:03]}  d6 {[%clk 0:02:53]} 9. h3 {[%clk 0:03:03]}  Bd7 {[%clk 0:02:53]} 10. O-O {[%clk 0:03:03]}  a6 {[%clk 0:02:53]} 11. f4 {[%clk 0:03:03]}  Rc8 {[%clk 0:02:51]} 12. Nf3 {[%clk 0:03:03]}  Na5 {[%clk 0:02:49]} 13. e5 {[%clk 0:02:58]}  dxe5 {[%clk 0:02:47]} 14. fxe5 {[%clk 0:02:58]}  Nh5 {[%clk 0:02:39]} 15. Qe1 {[%clk 0:02:43]}  Nxb3 {[%clk 0:02:38]} 16. axb3 {[%clk 0:02:43]}  f5 {[%clk 0:02:18]} 17. Rd1 {[%clk 0:02:42]}  Qe8 {[%clk 0:02:15]} 18. Qh4 {[%clk 0:02:17]}  Bc6 {[%clk 0:02:11]} 19. Nd5 {[%clk 0:01:48]}  Bxd5 {[%clk 0:02:01]} 20. Rxd5 {[%clk 0:01:49]}  Rxc2 {[%clk 0:02:02]} 21. Nd4 {[%clk 0:01:40]}  Rxb2 {[%clk 0:01:58]} 22. g4 {[%clk 0:01:03]}  fxg4 {[%clk 0:01:55]} 23. Rxf8+ {[%clk 0:00:56]}  Qxf8 {[%clk 0:01:56]} 24. hxg4 {[%clk 0:00:29]}  Rb1+ {[%clk 0:01:54]} 25. Kh2 {[%clk 0:00:29]}  Qf1 {[%clk 0:01:54]} 26. Rd8+ {[%clk 0:00:21]}  Bf8 {[%clk 0:01:53]} 27. gxh5 {[%clk 0:00:13]}  Rb2+ {[%clk 0:01:50]} 28. Nc2 {[%clk 0:00:05]}  Rxc2+ {[%clk 0:01:49]} 29. Rd2 {[%clk 0:00:05]}  Rxd2+ {[%clk 0:01:49]} 30. Bxd2 {[%clk 0:00:06]}  Qe2+ {[%clk 0:01:49]} 31. Kg1 {[%clk 0:00:05]}  Qxd2 {[%clk 0:01:49]} 32. hxg6 {[%clk 0:00:06]}  Qc1+ {[%clk 0:01:48]} 0-1


[Site "https://www.chess.com"]

[Event "Titled Tuesday Blitz February 28 Early 2023"]
[White "Ohanyan, Emin"]
[Black "Aggelis, Nikolaos"]
[WhiteFideId "13312022"]
[BlackFideId "4213220"]
[WhiteElo "2403"]
[BlackElo "2189"]
[Result "1-0"]
[Round "02"]
[TimeControl "180+2"]
[Date "2023.02.28"]
[WhiteClock "0:01:10"]
[BlackClock "0:00:12"]

1. e4 {[%clk 0:03:00]}  c6 {[%clk 0:03:00]} 2. d4 {[%clk 0:03:00]}  d5 {[%clk 0:03:00]} 3. Nc3 {[%clk 0:03:01]}  dxe4 {[%clk 0:03:00]} 4. Nxe4 {[%clk 0:03:02]}  Nf6 {[%clk 0:02:58]} 5. Nxf6+ {[%clk 0:03:02]}  exf6 {[%clk 0:02:59]} 6. Bd3 {[%clk 0:03:02]}  Bd6 {[%clk 0:02:59]} 7. Qh5 {[%clk 0:03:02]}  g6 {[%clk 0:02:53]} 8. Qh6 {[%clk 0:03:02]}  Qe7+ {[%clk 0:02:52]} 9. Ne2 {[%clk 0:03:02]}  Be6 {[%clk 0:02:49]} 10. Qg7 {[%clk 0:03:00]}  Rf8 {[%clk 0:02:46]} 11. Bh6 {[%clk 0:02:57]}  Nd7 {[%clk 0:02:43]} 12. Qxh7 {[%clk 0:02:57]}  O-O-O {[%clk 0:02:40]} 13. Bxf8 {[%clk 0:02:58]}  Nxf8 {[%clk 0:02:36]} 14. Qh6 {[%clk 0:02:50]}  g5 {[%clk 0:02:22]} 15. h4 {[%clk 0:02:45]}  Ng6 {[%clk 0:02:18]} 16. hxg5 {[%clk 0:02:42]}  fxg5 {[%clk 0:02:18]} 17. Bxg6 {[%clk 0:02:34]}  fxg6 {[%clk 0:02:19]} 18. O-O-O {[%clk 0:02:34]}  Bxa2 {[%clk 0:02:15]} 19. Rhe1 {[%clk 0:02:25]}  Qf6 {[%clk 0:02:08]} 20. Qh3+ {[%clk 0:02:21]}  Be6 {[%clk 0:02:06]} 21. Qf3 {[%clk 0:02:19]}  Qxf3 {[%clk 0:01:59]} 22. gxf3 {[%clk 0:02:20]}  Bd5 {[%clk 0:01:59]} 23. Rd3 {[%clk 0:02:12]}  Rf8 {[%clk 0:01:59]} 24. Nc3 {[%clk 0:02:06]}  Bxf3 {[%clk 0:01:51]} 25. d5 {[%clk 0:02:06]}  cxd5 {[%clk 0:01:06]} 26. Nxd5 {[%clk 0:02:07]}  Bxd5 {[%clk 0:01:05]} 27. Rxd5 {[%clk 0:02:08]}  Kc7 {[%clk 0:01:05]} 28. Re6 {[%clk 0:01:52]}  Bf4+ {[%clk 0:00:44]} 29. Kd1 {[%clk 0:01:52]}  Bh2 {[%clk 0:00:22]} 30. Ke2 {[%clk 0:01:48]}  Bf4 {[%clk 0:00:18]} 31. Rxg6 {[%clk 0:01:48]}  Rf7 {[%clk 0:00:17]} 32. Rc5+ {[%clk 0:01:40]}  Kd7 {[%clk 0:00:17]} 33. Kd3 {[%clk 0:01:40]}  b6 {[%clk 0:00:17]} 34. Rd5+ {[%clk 0:01:39]}  Kc7 {[%clk 0:00:18]} 35. b4 {[%clk 0:01:30]}  Kb7 {[%clk 0:00:18]} 36. b5 {[%clk 0:01:30]}  Rc7 {[%clk 0:00:17]} 37. c4 {[%clk 0:01:30]}  Rf7 {[%clk 0:00:17]} 38. f3 {[%clk 0:01:27]}  Bc1 {[%clk 0:00:17]} 39. Ke2 {[%clk 0:01:25]}  Re7+ {[%clk 0:00:16]} 40. Kf2 {[%clk 0:01:25]}  Rc7 {[%clk 0:00:16]} 41. Rd4 {[%clk 0:01:21]}  Re7 {[%clk 0:00:16]} 42. Re4 {[%clk 0:01:21]}  Rd7 {[%clk 0:00:15]} 43. Kg3 {[%clk 0:01:21]}  Bf4+ {[%clk 0:00:12]} 44. Kg4 {[%clk 0:01:21]}  a6 {[%clk 0:00:12]} 45. Ree6 {[%clk 0:01:18]}  axb5 {[%clk 0:00:11]} 46. Rxb6+ {[%clk 0:01:18]}  Kc8 {[%clk 0:00:12]} 47. Rxb5 {[%clk 0:01:10]}  Rd1 {[%clk 0:00:12]} 48. Rc6+ {[%clk 0:01:09]}  Kd7 {[%clk 0:00:12]} 49. Rd5+ {[%clk 0:01:10]}  Rxd5 {[%clk 0:00:12]} 50. cxd5 {[%clk 0:01:10]} 1-0


[Site "https://www.chess.com"]

[Event "Titled Tuesday Blitz February 28 Early 2023"]
[White "Koellner, Ruben Gideon"]
[Black "Moroni, Luca Jr"]
[WhiteFideId "12993093"]
[BlackFideId "865834"]
[WhiteElo "2303"]
[BlackElo "2569"]
[Result "1/2-1/2"]
[Round "02"]
[TimeControl "180+2"]
[Date "2023.02.28"]
[WhiteClock "0:01:11"]
[BlackClock "0:00:13"]

1. d4 {[%clk 0:03:00]}  g6 {[%clk 0:03:00]} 2. Nf3 {[%clk 0:03:00]}  Bg7 {[%clk 0:03:00]} 3. Nbd2 {[%clk 0:03:00]}  d6 {[%clk 0:02:58]} 4. e4 {[%clk 0:03:00]}  Nf6 {[%clk 0:02:59]} 5. Bc4 {[%clk 0:03:01]}  O-O {[%clk 0:02:59]} 6. O-O {[%clk 0:03:01]}  Nxe4 {[%clk 0:02:58]} 7. Nxe4 {[%clk 0:03:01]}  d5 {[%clk 0:02:59]} 8. Bd3 {[%clk 0:03:02]}  dxe4 {[%clk 0:02:59]} 9. Bxe4 {[%clk 0:03:03]}  Nd7 {[%clk 0:02:58]} 10. c3 {[%clk 0:03:03]}  c5 {[%clk 0:02:58]} 11. Be3 {[%clk 0:03:01]}  Qc7 {[%clk 0:02:57]} 12. dxc5 {[%clk 0:02:56]}  Nxc5 {[%clk 0:02:56]} 13. Bc2 {[%clk 0:02:57]}  b6 {[%clk 0:02:50]} 14. Bxc5 {[%clk 0:02:33]}  bxc5 {[%clk 0:02:44]} 15. Qe2 {[%clk 0:02:32]}  Rb8 {[%clk 0:02:41]} 16. Bb3 {[%clk 0:02:29]}  Bb7 {[%clk 0:02:39]} 17. Rfe1 {[%clk 0:02:26]}  e6 {[%clk 0:02:38]} 18. Rad1 {[%clk 0:02:24]}  Rfd8 {[%clk 0:02:26]} 19. Rxd8+ {[%clk 0:02:22]}  Rxd8 {[%clk 0:02:26]} 20. Rd1 {[%clk 0:02:20]}  Bf6 {[%clk 0:02:21]} 21. Rxd8+ {[%clk 0:02:19]}  Qxd8 {[%clk 0:02:22]} 22. Qd2 {[%clk 0:02:14]}  Qxd2 {[%clk 0:01:48]} 23. Nxd2 {[%clk 0:02:15]}  Bg5 {[%clk 0:01:49]} 24. Nc4 {[%clk 0:02:00]}  Bc1 {[%clk 0:01:39]} 25. Bc2 {[%clk 0:01:54]}  Bd5 {[%clk 0:01:36]} 26. b3 {[%clk 0:01:54]}  Bxc4 {[%clk 0:01:31]} 27. bxc4 {[%clk 0:01:55]}  Bd2 {[%clk 0:01:31]} 28. Kf1 {[%clk 0:01:54]}  Kf8 {[%clk 0:01:31]} 29. Ke2 {[%clk 0:01:53]}  Bxc3 {[%clk 0:01:31]} 30. Ba4 {[%clk 0:01:53]}  Ke7 {[%clk 0:01:31]} 31. h3 {[%clk 0:01:53]}  Bd4 {[%clk 0:01:31]} 32. f3 {[%clk 0:01:49]}  h5 {[%clk 0:01:31]} 33. Kd3 {[%clk 0:01:48]}  h4 {[%clk 0:01:29]} 34. Ke4 {[%clk 0:01:48]}  f5+ {[%clk 0:01:27]} 35. Kd3 {[%clk 0:01:48]}  Kf6 {[%clk 0:01:28]} 36. Be8 {[%clk 0:01:47]}  g5 {[%clk 0:01:25]} 37. Bd7 {[%clk 0:01:47]}  Ke5 {[%clk 0:01:24]} 38. Bc8 {[%clk 0:01:47]}  Kd6 {[%clk 0:01:19]} 39. Ke2 {[%clk 0:01:46]}  Ke5 {[%clk 0:01:12]} 40. Kd3 {[%clk 0:01:45]}  Kf6 {[%clk 0:01:08]} 41. Ke2 {[%clk 0:01:45]}  Be5 {[%clk 0:01:01]} 42. Kd3 {[%clk 0:01:44]}  Bd6 {[%clk 0:01:01]} 43. Bd7 {[%clk 0:01:43]}  Ke5 {[%clk 0:00:53]} 44. Bc8 {[%clk 0:01:42]}  Be7 {[%clk 0:00:53]} 45. Bd7 {[%clk 0:01:42]}  Bd8 {[%clk 0:00:50]} 46. Bc8 {[%clk 0:01:43]}  Ba5 {[%clk 0:00:38]} 47. Bd7 {[%clk 0:01:41]}  Be1 {[%clk 0:00:38]} 48. Bc8 {[%clk 0:01:40]}  Bf2 {[%clk 0:00:35]} 49. Bd7 {[%clk 0:01:40]}  a5 {[%clk 0:00:33]} 50. a4 {[%clk 0:01:40]}  Bd4 {[%clk 0:00:29]} 51. Bc8 {[%clk 0:01:40]}  Bf2 {[%clk 0:00:21]} 52. Bd7 {[%clk 0:01:40]}  Be1 {[%clk 0:00:21]} 53. Bc8 {[%clk 0:01:39]}  Bb4 {[%clk 0:00:22]} 54. Bd7 {[%clk 0:01:39]}  Ba3 {[%clk 0:00:18]} 55. Bc8 {[%clk 0:01:39]}  Bb2 {[%clk 0:00:19]} 56. Bd7 {[%clk 0:01:39]}  Ba1 {[%clk 0:00:20]} 57. Bc8 {[%clk 0:01:39]}  g4 {[%clk 0:00:16]} 58. hxg4 {[%clk 0:01:25]}  fxg4 {[%clk 0:00:16]} 59. fxg4 {[%clk 0:01:26]}  Kf4 {[%clk 0:00:16]} 60. Bxe6 {[%clk 0:01:24]}  Kg3 {[%clk 0:00:17]} 61. Bd5 {[%clk 0:01:21]}  Kxg4 {[%clk 0:00:17]} 62. Bf3+ {[%clk 0:01:20]}  Kf4 {[%clk 0:00:17]} 63. Bd5 {[%clk 0:01:21]}  Bb2 {[%clk 0:00:16]} 64. Bc6 {[%clk 0:01:20]}  Ba3 {[%clk 0:00:16]} 65. Bb7 {[%clk 0:01:20]}  Bb4 {[%clk 0:00:16]} 66. Bc8 {[%clk 0:01:19]}  Kg3 {[%clk 0:00:16]} 67. Bb7 {[%clk 0:01:17]}  Kf2 {[%clk 0:00:17]} 68. Bc6 {[%clk 0:01:16]}  Ba3 {[%clk 0:00:13]} 69. Bb7 {[%clk 0:01:16]}  Bb2 {[%clk 0:00:13]} 70. Bc6 {[%clk 0:01:16]}  Bd4 {[%clk 0:00:13]} 71. Bd5 {[%clk 0:01:15]}  Ke1 {[%clk 0:00:13]} 72. Bf3 {[%clk 0:01:15]}  Kf1 {[%clk 0:00:13]} 73. Bb7 {[%clk 0:01:13]}  Kg1 {[%clk 0:00:14]} 74. Be4 {[%clk 0:01:12]}  Kf2 {[%clk 0:00:14]} 75. Bd5 {[%clk 0:01:13]}  Kg3 {[%clk 0:00:15]} 76. Be4 {[%clk 0:01:13]}  Kf4 {[%clk 0:00:15]} 77. Bd5 {[%clk 0:01:13]}  Be5 {[%clk 0:00:15]} 78. Be4 {[%clk 0:01:14]}  Bc7 {[%clk 0:00:15]} 79. Bd5 {[%clk 0:01:14]}  Bd8 {[%clk 0:00:14]} 80. Bc6 {[%clk 0:01:14]}  Bf6 {[%clk 0:00:14]} 81. Bb7 {[%clk 0:01:14]}  Kg3 {[%clk 0:00:14]} 82. Bc6 {[%clk 0:01:14]}  Bg7 {[%clk 0:00:15]} 83. Bd5 {[%clk 0:01:14]}  Kf2 {[%clk 0:00:15]} 84. Be4 {[%clk 0:01:14]}  Ke1 {[%clk 0:00:15]} 85. Bf3 {[%clk 0:01:14]}  Bf6 {[%clk 0:00:14]} 86. Bd5 {[%clk 0:01:10]}  Kf2 {[%clk 0:00:14]} 87. Bc6 {[%clk 0:01:10]}  Bd4 {[%clk 0:00:13]} 88. Bd5 {[%clk 0:01:11]} 1/2-1/2


[Site "https://www.chess.com"]

[Event "Titled Tuesday Blitz February 28 Early 2023"]
[White "Tologon tegin, Semetei"]
[Black "Yeletsky, Ivan"]
[WhiteFideId "13800574"]
[BlackFideId "24180327"]
[WhiteElo "2247"]
[BlackElo "2414"]
[Result "0-1"]
[Round "02"]
[TimeControl "180+2"]
[Date "2023.02.28"]
[WhiteClock "0:00:06"]
[BlackClock "0:00:21"]

1. d4 {[%clk 0:02:48]}  Nf6 {[%clk 0:02:58]} 2. c4 {[%clk 0:02:48]}  Nc6 {[%clk 0:02:58]} 3. Nf3 {[%clk 0:02:45]}  e6 {[%clk 0:02:58]} 4. a3 {[%clk 0:02:44]}  d5 {[%clk 0:02:55]} 5. Nc3 {[%clk 0:02:43]}  dxc4 {[%clk 0:02:55]} 6. e4 {[%clk 0:02:42]}  Na5 {[%clk 0:02:55]} 7. Bg5 {[%clk 0:02:36]}  Be7 {[%clk 0:02:52]} 8. Bxc4 {[%clk 0:01:39]}  Nxc4 {[%clk 0:02:51]} 9. Qa4+ {[%clk 0:01:39]}  Nd7 {[%clk 0:02:34]} 10. Bxe7 {[%clk 0:01:38]}  Nxb2 {[%clk 0:02:34]} 11. Qc2 {[%clk 0:01:06]}  Qxe7 {[%clk 0:02:34]} 12. Qxb2 {[%clk 0:01:06]}  O-O {[%clk 0:02:34]} 13. O-O {[%clk 0:01:02]}  b6 {[%clk 0:02:25]} 14. Rac1 {[%clk 0:00:40]}  Bb7 {[%clk 0:02:11]} 15. Rfe1 {[%clk 0:00:40]}  Rfe8 {[%clk 0:01:55]} 16. Nb5 {[%clk 0:00:37]}  Rec8 {[%clk 0:01:51]} 17. Nxc7 {[%clk 0:00:31]}  Rab8 {[%clk 0:01:51]} 18. Nb5 {[%clk 0:00:23]}  Rxc1 {[%clk 0:01:42]} 19. Qxc1 {[%clk 0:00:24]}  a6 {[%clk 0:01:41]} 20. Nc3 {[%clk 0:00:22]}  Nf6 {[%clk 0:01:37]} 21. Qb2 {[%clk 0:00:21]}  b5 {[%clk 0:01:33]} 22. e5 {[%clk 0:00:17]}  Nd5 {[%clk 0:01:27]} 23. Ne4 {[%clk 0:00:17]}  Nb6 {[%clk 0:01:27]} 24. Nfd2 {[%clk 0:00:16]}  h6 {[%clk 0:01:22]} 25. Nd6 {[%clk 0:00:16]}  Bd5 {[%clk 0:01:20]} 26. N2e4 {[%clk 0:00:15]}  Qc7 {[%clk 0:01:04]} 27. Rc1 {[%clk 0:00:14]}  Nc4 {[%clk 0:01:04]} 28. Nxc4 {[%clk 0:00:13]}  bxc4 {[%clk 0:01:05]} 29. Qc2 {[%clk 0:00:13]}  Qa5 {[%clk 0:01:02]} 30. Nd6 {[%clk 0:00:09]}  Qxa3 {[%clk 0:00:49]} 31. Nxc4 {[%clk 0:00:09]}  Qb4 {[%clk 0:00:49]} 32. Ne3 {[%clk 0:00:08]}  Qxd4 {[%clk 0:00:48]} 33. Rd1 {[%clk 0:00:08]}  Qxe5 {[%clk 0:00:48]} 34. Nxd5 {[%clk 0:00:08]}  exd5 {[%clk 0:00:48]} 35. g3 {[%clk 0:00:07]}  Rd8 {[%clk 0:00:38]} 36. Qa2 {[%clk 0:00:05]}  Rd6 {[%clk 0:00:37]} 37. Rc1 {[%clk 0:00:03]}  g6 {[%clk 0:00:36]} 38. Qd2 {[%clk 0:00:02]}  Kg7 {[%clk 0:00:35]} 39. Rd1 {[%clk 0:00:03]}  d4 {[%clk 0:00:35]} 40. h4 {[%clk 0:00:03]}  h5 {[%clk 0:00:35]} 41. Qd3 {[%clk 0:00:04]}  Qb5 {[%clk 0:00:33]} 42. Qe4 {[%clk 0:00:03]}  d3 {[%clk 0:00:33]} 43. Rd2 {[%clk 0:00:04]}  Qd5 {[%clk 0:00:26]} 44. Qf4 {[%clk 0:00:04]}  Re6 {[%clk 0:00:26]} 45. Kh2 {[%clk 0:00:04]}  Re1 {[%clk 0:00:26]} 46. f3 {[%clk 0:00:03]}  Re2+ {[%clk 0:00:19]} 47. Kg1 {[%clk 0:00:03]}  Rxd2 {[%clk 0:00:18]} 48. Qxd2 {[%clk 0:00:04]}  Qxf3 {[%clk 0:00:19]} 49. Qc3+ {[%clk 0:00:05]}  Kh7 {[%clk 0:00:19]} 50. Qd4 {[%clk 0:00:05]}  Qxg3+ {[%clk 0:00:20]} 51. Kf1 {[%clk 0:00:06]}  Qf3+ {[%clk 0:00:20]} 52. Kg1 {[%clk 0:00:06]}  Qd1+ {[%clk 0:00:19]} 53. Kg2 {[%clk 0:00:06]}  Qe2+ {[%clk 0:00:20]} 54. Kg3 {[%clk 0:00:07]}  d2 {[%clk 0:00:21]} 55. Qd7 {[%clk 0:00:06]}  Qg4+ {[%clk 0:00:21]} 56. Kf2 {[%clk 0:00:06]}  Qxd7 {[%clk 0:00:21]} 0-1


[Site "https://www.chess.com"]

[Event "Titled Tuesday Blitz February 28 Early 2023"]
[White "Ahmadzada, Ahmad"]
[Black "Domingo Nunez, Alejandro"]
[WhiteFideId "13413007"]
[BlackFideId "22245561"]
[WhiteElo "2388"]
[BlackElo "2230"]
[Result "1-0"]
[Round "02"]
[TimeControl "180+2"]
[Date "2023.02.28"]
[WhiteClock "0:00:13"]
[BlackClock "0:00:02"]

1. Nf3 {[%clk 0:03:00]}  g6 {[%clk 0:03:00]} 2. e4 {[%clk 0:03:00]}  Bg7 {[%clk 0:03:01]} 3. d4 {[%clk 0:03:00]}  c6 {[%clk 0:03:01]} 4. Nc3 {[%clk 0:02:59]}  d5 {[%clk 0:02:59]} 5. h3 {[%clk 0:02:59]}  dxe4 {[%clk 0:02:59]} 6. Nxe4 {[%clk 0:03:00]}  Nf6 {[%clk 0:03:00]} 7. Bd3 {[%clk 0:02:58]}  O-O {[%clk 0:02:59]} 8. O-O {[%clk 0:02:57]}  Nbd7 {[%clk 0:02:57]} 9. c3 {[%clk 0:02:54]}  Nxe4 {[%clk 0:02:50]} 10. Bxe4 {[%clk 0:02:55]}  e5 {[%clk 0:02:51]} 11. Bg5 {[%clk 0:02:35]}  Qc7 {[%clk 0:02:45]} 12. d5 {[%clk 0:02:23]}  cxd5 {[%clk 0:01:42]} 13. Bxd5 {[%clk 0:02:23]}  Nb6 {[%clk 0:01:33]} 14. Bb3 {[%clk 0:02:20]}  Re8 {[%clk 0:01:19]} 15. Qe2 {[%clk 0:02:12]}  Be6 {[%clk 0:01:13]} 16. Rfd1 {[%clk 0:01:57]}  e4 {[%clk 0:00:36]} 17. Nd4 {[%clk 0:01:54]}  Bxb3 {[%clk 0:00:37]} 18. axb3 {[%clk 0:01:50]}  Qe5 {[%clk 0:00:37]} 19. Qb5 {[%clk 0:01:39]}  Nd5 {[%clk 0:00:31]} 20. Ra5 {[%clk 0:01:16]}  Qxg5 {[%clk 0:00:30]} 21. Qxd5 {[%clk 0:01:15]}  Qe7 {[%clk 0:00:28]} 22. Re1 {[%clk 0:00:56]}  Rad8 {[%clk 0:00:25]} 23. Qc4 {[%clk 0:00:56]}  a6 {[%clk 0:00:23]} 24. Rc5 {[%clk 0:00:50]}  Qh4 {[%clk 0:00:22]} 25. Rc7 {[%clk 0:00:47]}  Qf4 {[%clk 0:00:14]} 26. g3 {[%clk 0:00:41]}  Qf6 {[%clk 0:00:13]} 27. Rxb7 {[%clk 0:00:37]}  Bh6 {[%clk 0:00:13]} 28. Re2 {[%clk 0:00:23]}  e3 {[%clk 0:00:12]} 29. Kg2 {[%clk 0:00:24]}  Rd6 {[%clk 0:00:06]} 30. f4 {[%clk 0:00:22]}  Rdd8 {[%clk 0:00:03]} 31. Qc6 {[%clk 0:00:17]}  Qg7 {[%clk 0:00:03]} 32. Qf3 {[%clk 0:00:15]}  Rxd4 {[%clk 0:00:02]} 33. cxd4 {[%clk 0:00:15]}  Qxd4 {[%clk 0:00:03]} 34. Qc6 {[%clk 0:00:15]}  Rf8 {[%clk 0:00:02]} 35. Re7 {[%clk 0:00:13]} 1-0


[Site "https://www.chess.com"]